fUST/lending_fUST_20240115
["ID","MTS","AMOUNT","RATE_DAILY","PERIOD"]
[311668207,1705300234403,-500.0,0.00029105,2]
[311668208,1705300234412,-500.0,0.00029105,2]
[311668209,1705300234421,-500.0,0.00029105,2]
[311668210,1705300234430,-500.0,0.00029127,2]
[311668211,1705300234439,-500.0,0.00029127,2]
[311668212,1705300234449,-500.0,0.00029293,2]
[311668213,1705300234458,-500.0,0.00029293,2]
[311668214,1705300234467,-500.0,0.00029293,2]
[311668215,1705300234477,-500.0,0.00029293,2]
[311668216,1705300234486,-500.0,0.00029293,2]
[311668217,1705300234495,-500.0,0.00029293,2]
[311668218,1705300234504,-500.0,0.00029293,2]
[311668219,1705300234513,-1378.1,0.00029293,2]
[311668220,1705300234522,-500.0,0.00029293,2]
[311668221,1705300234531,-2145.42,0.00029293,2]
[311668222,1705300234541,-153.84014321,0.00029298,2]
[311668223,1705300234550,-500.0,0.00029314,2]
[311668224,1705300234559,-500.0,0.00029314,2]
[311668225,1705300234568,-500.0,0.00029314,2]
[311668226,1705300234579,-500.0,0.00029314,2]
[311668227,1705300234588,-500.0,0.00029314,2]
[311668228,1705300234597,-500.0,0.00029314,2]
[311668229,1705300234607,-500.0,0.00029324,2]
[311668230,1705300234616,-500.0,0.00029324,2]
[311668231,1705300234625,-500.0,0.00029324,2]
[311668232,1705300234634,-553.65,0.00029324,2]
[311668233,1705300234644,-765.08122173,0.00029352,2]
[311668234,1705300234653,-500.0,0.00029379,2]
[311668235,1705300234662,-500.0,0.00029526,2]
[311668236,1705300234672,-3510.89,0.00029526,2]
[311668237,1705300234681,-500.0,0.00029526,2]
[311668238,1705300234690,-865.79,0.00029526,2]
[311668239,1705300234700,-1409.49,0.00029526,2]
[311668240,1705300234709,-500.0,0.00029526,2]
[311668241,1705300234719,-500.0,0.00029526,2]
[311668242,1705300234729,-2540.08,0.00029557,2]
[311668243,1705300234738,-500.0,0.00029567,2]
[311668244,1705300234747,-500.0,0.00029567,2]
[311668245,1705300234757,-500.0,0.00029567,2]
[311668246,1705300234766,-500.0,0.00029567,2]
[311668247,1705300234777,-500.0,0.00029567,2]
[311668248,1705300234786,-500.0,0.00029567,2]
[311668249,1705300234796,-1378.1,0.00029567,2]
[311668250,1705300234806,-2145.42,0.00029567,2]
[311668251,1705300234817,-3379.54417758,0.00029568,3]
[311668317,1705300238303,-500.0,0.00029557,2]
[311668320,1705300238317,-22779.16,0.00029558,3]
[311668322,1705300238331,-539.58,0.00029567,2]
[311668325,1705300238343,-23955.45582242,0.00029568,3]
[311668327,1705300238356,-500.0,0.00029578,2]
[311668330,1705300238368,-500.0,0.00029578,2]
[311668332,1705300238380,-500.0,0.00029578,2]
[311668334,1705300238393,-500.0,0.00029578,2]
[311668337,1705300238405,-500.0,0.00029578,2]
[311668339,1705300238415,-966.04,0.00029578,2]
[311668341,1705300238426,-500.0,0.00029578,2]
[311668343,1705300238438,-500.0,0.00029578,2]
[311668346,1705300238449,-500.0,0.00029578,2]
[311668348,1705300238462,-500.0,0.00029578,2]
[311668350,1705300238472,-500.0,0.00029578,2]
[311668352,1705300238482,-500.0,0.00029578,2]
[311668353,1705300238491,-500.0,0.00029578,2]
[311668355,1705300238502,-593.88964786,0.00029578,2]
[311668357,1705300238514,-500.0,0.00029578,2]
[311668359,1705300238525,-500.0,0.00029578,2]
[311668361,1705300238536,-587.30134196,0.00029578,2]
[311668362,1705300238546,-500.0,0.00029578,2]
[311668364,1705300238557,-500.0,0.00029578,2]
[311668366,1705300238568,-500.0,0.00029578,2]
[311668368,1705300238583,-500.0,0.00029588,2]
[311668369,1705300238593,-500.0,0.00029588,2]
[311668371,1705300238604,-500.0,0.00029588,2]
[311668373,1705300238615,-500.0,0.00029598,2]
[311668375,1705300238626,-553.65,0.00029598,2]
[311668377,1705300238638,-500.0,0.00029653,2]
[311668379,1705300238649,-507.44515137,0.0002968,3]
[311668380,1705300238660,-1414.37282577,0.00029788,2]
[311668382,1705300238670,-5040.06320059,0.0002979,7]
[311668383,1705300238680,-261.19258853,0.0002979,2]
[311668384,1705300238689,-200.0,0.0002979,2]
[311668385,1705300238700,-3510.89,0.000298,2]
[311668386,1705300238712,-865.79,0.000298,2]
[311668387,1705300238723,-1409.49,0.000298,2]
[311668388,1705300238735,-500.0,0.000298,2]
[311668389,1705300238746,-346.5646477,0.00029819,2]
[311668390,1705300238757,-2035.5021214,0.00029819,2]
[311668391,1705300238769,-2540.08,0.00029831,2]
[311668392,1705300238780,-500.0,0.00029831,2]
[311668393,1705300238792,-500.0,0.00029841,2]
[311668394,1705300238803,-500.0,0.00029841,2]
[311668395,1705300238813,-472.29829546,0.00029841,2]
[311668396,1705300238825,-500.0,0.00029841,2]
[311668397,1705300238836,-1378.1,0.00029841,2]
[311668398,1705300238847,-2145.42,0.00029841,2]
[311668400,1705300238857,-539.58,0.00029841,2]
[311668402,1705300238868,-500.0,0.00029852,2]
[311668403,1705300238878,-500.0,0.00029852,2]
[311668405,1705300238891,-966.04,0.00029852,2]
[311668407,1705300238902,-500.0,0.00029852,2]
[311668409,1705300238914,-500.0,0.00029852,2]
[311668411,1705300238925,-500.0,0.00029852,2]
[311668413,1705300238936,-322.10256905,0.00029852,2]
[311668415,1705300238948,-500.0,0.00029852,2]
[311668417,1705300238959,-500.0,0.00029852,2]
[311668419,1705300238969,-325.90275771,0.00029852,2]
[311668420,1705300238980,-500.0,0.00029852,2]
[311668422,1705300238991,-500.0,0.00029862,2]
[311668424,1705300239002,-500.0,0.00029872,2]
[311668426,1705300239012,-553.65,0.00029872,2]
[311668428,1705300239021,-404.50736868,0.000299,2]
[311668430,1705300239032,-500.0,0.00029927,2]
[311668431,1705300239042,-28282.07598088,0.0003,3]
[311668433,1705300239052,-100000.0,0.0003,2]
[311668435,1705300239061,-500.0,0.0003,2]
[311668437,1705300239072,-238.525294,0.0003,2]
[311668438,1705300239082,-1715.0,0.0003,2]
[311668440,1705300239094,-389.0,0.0003,2]
[311668442,1705300239104,-3510.89,0.00030074,2]
[311668444,1705300239115,-865.79,0.00030074,2]
[311668445,1705300239125,-1409.49,0.00030074,2]
[311668447,1705300239136,-2540.08,0.00030105,2]
[311668449,1705300239146,-500.0,0.00030115,2]
[311668450,1705300239156,-500.0,0.00030115,2]
[311668451,1705300239167,-1378.1,0.00030115,2]
[311668452,1705300239178,-2145.42,0.00030115,2]
[311668453,1705300239187,-539.58,0.00030115,2]
[311668454,1705300239197,-966.04,0.00030126,2]
[311668455,1705300239207,-500.0,0.00030126,2]
[311668456,1705300239217,-500.0,0.00030126,2]
[311668457,1705300239228,-500.0,0.00030126,2]
[311668458,1705300239239,-500.0,0.00030126,2]
[311668459,1705300239249,-197.5089968,0.0003013,2]
[311668460,1705300239260,-500.0,0.00030136,2]
[311668461,1705300239270,-500.0,0.00030136,2]
[311668462,1705300239281,-500.0,0.00030146,2]
[311668463,1705300239291,-553.65,0.00030146,2]
[311668464,1705300239302,-250.0,0.00030182,2]
[311668465,1705300239313,-500.0,0.00030201,2]
[311668466,1705300239325,-153.84014321,0.0003031,7]
[311668467,1705300239337,-153.84014321,0.00030313,7]
[311668468,1705300239348,-3510.89,0.00030348,2]
[311668469,1705300239360,-865.79,0.00030348,2]
[311668470,1705300239370,-1409.49,0.00030348,2]
[311668472,1705300239380,-2540.08,0.00030379,2]
[311668474,1705300239391,-500.0,0.00030389,2]
[311668476,1705300239402,-500.0,0.00030389,2]
[311668478,1705300239412,-1378.1,0.00030389,2]
[311668479,1705300239423,-2145.42,0.00030389,2]
[311668480,1705300239433,-539.58,0.00030389,2]
[311668481,1705300239445,-966.04,0.000304,2]
[311668482,1705300239455,-500.0,0.000304,2]
[311668483,1705300239466,-500.0,0.000304,2]
[311668484,1705300239477,-500.0,0.0003041,2]
[311668485,1705300239487,-553.65,0.0003042,2]
[311668486,1705300239498,-3281.14,0.00030457,2]
[311668487,1705300239509,-5000.0,0.00030458,2]
[311668488,1705300239644,-5000.0,0.00030467,2]
[311668489,1705300239655,-589.39,0.00030471,2]
[311668490,1705300239664,-5000.0,0.00030475,2]
[311668491,1705300239674,-500.0,0.00030475,2]
[311668492,1705300239683,-5000.0,0.00030483,2]
[311668493,1705300239692,-5000.0,0.00030491,2]
[311668494,1705300239701,-562.16562428,0.00030494,14]
[311668495,1705300239710,-5000.0,0.00030496,2]
[311668496,1705300239720,-5000.0,0.00030497,2]
[311668497,1705300239729,-154.96900636,0.00030601,2]
[311668498,1705300239737,-1413.42859915,0.00030602,2]
[311668499,1705300239747,-154.9690062,0.00030602,2]
[311668500,1705300239757,-282.83454941,0.00030602,3]
[311668501,1705300239766,-154.99732422,0.00030602,4]
[311668502,1705300239775,-4808.63277483,0.00030602,4]
[311668503,1705300239784,-3510.89,0.00030622,2]
[311668504,1705300239794,-865.79,0.00030622,2]
[311668505,1705300239803,-1409.49,0.00030622,2]
[311668506,1705300239812,-2540.08,0.00030653,2]
[311668507,1705300239822,-707.0,0.00030655,30]
[311668508,1705300239831,-535.0,0.00030655,30]
[311668509,1705300239840,-500.0,0.00030663,2]
[311668510,1705300239849,-500.0,0.00030663,2]
[311668511,1705300239858,-1378.1,0.00030663,2]
[311668512,1705300239867,-2145.42,0.00030663,2]
[311668513,1705300239876,-539.58,0.00030663,2]
[311668514,1705300239885,-150.5,0.00030665,30]
[311668515,1705300239895,-707.0,0.00030665,30]
[311668516,1705300239904,-535.0,0.00030665,30]
[311668517,1705300239914,-966.04,0.00030674,2]
[311668518,1705300239923,-500.0,0.00030674,2]
[311668519,1705300239933,-574.01015531,0.00030674,2]
[311668520,1705300239943,-150.5,0.00030675,30]
[311668521,1705300239952,-707.0,0.00030675,30]
[311668522,1705300239962,-535.0,0.00030675,30]
[311668523,1705300239971,-241.27,0.0003068,30]
[311668525,1705300239979,-500.0,0.00030684,2]
[311668526,1705300239989,-150.5,0.00030685,30]
[311668527,1705300239998,-553.65,0.00030694,2]
[311668528,1705300240007,-153.84014321,0.00030726,7]
[311668529,1705300240017,-500.0,0.00030749,2]
[311668530,1705300240026,-3510.89,0.00030896,2]
[311668531,1705300240035,-865.79,0.00030896,2]
[311668532,1705300240044,-1409.49,0.00030896,2]
[311668533,1705300240053,-2540.08,0.00030927,2]
[311668534,1705300240063,-539.68628287,0.00030937,2]
[311668535,1705300240072,-500.0,0.00030937,2]
[311668536,1705300240081,-153.84014321,0.00030937,7]
[311668537,1705300240090,-1378.1,0.00030937,2]
[311668538,1705300240100,-2145.42,0.00030937,2]
[311668539,1705300240109,-539.58,0.00030937,2]
[311668540,1705300240118,-966.04,0.00030948,2]
[311668541,1705300240127,-500.0,0.00030948,2]
[311668542,1705300240137,-500.0,0.00030958,2]
[311668544,1705300240146,-553.65,0.00030968,2]
[311668545,1705300240155,-490.55209365,0.00030986,2]
[311668547,1705300240164,-464.67928034,0.00030986,2]
[311668549,1705300240174,-500.0,0.00030986,2]
[311668551,1705300240182,-500.0,0.00030986,2]
[311668552,1705300240191,-500.0,0.00030986,2]
[311668553,1705300240201,-500.0,0.00030986,2]
[311668554,1705300240210,-204.9015749,0.00030986,2]
[311668555,1705300240219,-500.0,0.00030986,2]
[311668556,1705300240228,-500.0,0.00030986,2]
[311668557,1705300240238,-500.0,0.00030986,2]
[311668558,1705300240247,-500.0,0.00030986,2]
[311668559,1705300240258,-500.0,0.00030986,2]
[311668560,1705300240267,-500.0,0.00030986,2]
[311668561,1705300240277,-500.0,0.00030986,2]
[311668562,1705300240286,-646.66015946,0.00030986,2]
[311668563,1705300240296,-500.0,0.00030986,2]
[311668564,1705300240305,-500.0,0.00030986,2]
[311668565,1705300240315,-500.0,0.00030986,2]
[311668566,1705300240326,-500.0,0.00030986,2]
[311668567,1705300240334,-244.01363362,0.00030986,2]
[311668568,1705300240343,-500.0,0.00030986,2]
[311668569,1705300240352,-381.39739265,0.00030986,2]
[311668570,1705300240369,-500.0,0.00030986,2]
[311668571,1705300240380,-500.0,0.00030986,2]
[311668572,1705300240389,-500.0,0.00030986,2]
[311668573,1705300240399,-334.70452152,0.00030986,2]
[311668574,1705300240408,-500.0,0.00030986,2]
[311668575,1705300240418,-500.0,0.00030986,2]
[311668576,1705300240427,-500.0,0.00030986,2]
[311668577,1705300240436,-500.0,0.00030986,2]
[311668578,1705300240446,-500.0,0.00030986,2]
[311668579,1705300240455,-500.0,0.00030986,2]
[311668580,1705300240465,-500.0,0.00030986,2]
[311668581,1705300240474,-529.3581716,0.00030986,2]
[311668582,1705300240483,-500.0,0.00030986,2]
[311668583,1705300240492,-500.0,0.00030986,2]
[311668584,1705300240501,-500.0,0.00030986,2]
[311668585,1705300240512,-500.0,0.00030986,2]
[311668586,1705300240521,-500.0,0.00030986,2]
[311668587,1705300240530,-500.0,0.00030986,2]
[311668588,1705300240539,-551.3225868,0.00030986,2]
[311668589,1705300240548,-500.0,0.00030986,2]
[311668590,1705300240557,-500.0,0.00030986,2]
[311668591,1705300240566,-500.0,0.00030986,2]
[311668592,1705300240580,-500.0,0.00030986,2]
[311668593,1705300240589,-500.0,0.00030986,2]
[311668594,1705300240598,-500.0,0.00030986,2]
[311668595,1705300240607,-500.0,0.00030986,2]
[311668596,1705300240615,-500.0,0.00030986,2]
[311668597,1705300240624,-500.0,0.00030986,2]
[311668598,1705300240634,-83668.68008572,0.00031,4]
[311668599,1705300240643,-2001.49434476,0.00031,2]
[311668600,1705300240652,-500.0,0.00031023,2]
[311668601,1705300240661,-109.06515351,0.0003114,7]
[311668602,1705300240677,-43.25224167,0.0003114,7]
[311668603,1705300240686,-2238.67424607,0.0003117,2]
[311668622,1705300242569,-500.0,0.00030105,2]
[311668624,1705300242579,-500.0,0.00030136,2]
[311668627,1705300242595,-500.0,0.00030379,2]
[311668630,1705300242605,-500.0,0.00030653,2]
[311668631,1705300242615,-500.0,0.00030927,2]
[311668633,1705300242625,-500.0,0.00030986,2]
[311668634,1705300242634,-1272.21575393,0.0003117,2]
[311668635,1705300242644,-865.79,0.0003117,2]
[311668636,1705300242654,-1409.49,0.0003117,2]
[311668637,1705300242664,-153.84014321,0.00031193,7]
[311668638,1705300242675,-2540.08,0.00031201,2]
[311668639,1705300242684,-500.0,0.00031201,2]
[311668640,1705300242695,-500.0,0.00031211,2]
[311668641,1705300242705,-1378.1,0.00031211,2]
[311668642,1705300242715,-2145.42,0.00031211,2]
[311668644,1705300242724,-539.58,0.00031211,2]
[311668645,1705300242734,-966.04,0.00031222,2]
[311668646,1705300242744,-500.0,0.00031222,2]
[311668647,1705300242753,-500.0,0.00031232,2]
[311668648,1705300242762,-553.65,0.00031242,2]
[311668649,1705300242772,-152.3173952,0.00031278,7]
[311668650,1705300242781,-500.0,0.00031297,2]
[311668651,1705300242791,-153.84014321,0.00031345,7]
[311668652,1705300242800,-3510.89,0.00031444,2]
[311668653,1705300242810,-865.79,0.00031444,2]
[311668654,1705300242820,-1409.49,0.00031444,2]
[311668655,1705300242829,-2540.08,0.00031475,2]
[311668656,1705300242839,-500.0,0.00031475,2]
[311668657,1705300242849,-500.0,0.00031485,2]
[311668658,1705300242859,-1378.1,0.00031485,2]
[311668659,1705300242870,-2145.42,0.00031485,2]
[311668660,1705300242880,-539.58,0.00031485,2]
[311668661,1705300242889,-966.04,0.00031496,2]
[311668662,1705300242899,-244.25052378,0.00031496,2]
[311668663,1705300242908,-200.0,0.000315,4]
[311668664,1705300242918,-500.0,0.00031506,2]
[311668665,1705300242928,-553.65,0.00031516,2]
[311668666,1705300242937,-500.0,0.00031571,2]
[311668667,1705300242946,-200.0,0.00031594,15]
[311668668,1705300242956,-153.84014321,0.00031631,7]
[311668669,1705300242966,-3510.89,0.00031718,2]
[311668670,1705300242975,-865.79,0.00031718,2]
[311668671,1705300242984,-1409.49,0.00031718,2]
[311668672,1705300242995,-2540.08,0.00031749,2]
[311668673,1705300243005,-500.0,0.00031749,2]
[311668674,1705300243015,-500.0,0.00031759,2]
[311668675,1705300243028,-1378.1,0.00031759,2]
[311668676,1705300243038,-2145.42,0.00031759,2]
[311668677,1705300243048,-539.58,0.00031759,2]
[311668678,1705300243058,-966.04,0.0003177,2]
[311668679,1705300243070,-500.0,0.0003178,2]
[311668680,1705300243081,-553.65,0.0003179,2]
[311668681,1705300243091,-500.0,0.00031845,2]
[311668682,1705300243102,-3510.89,0.00031992,2]
[311668683,1705300243112,-865.79,0.00031992,2]
[311668684,1705300243122,-1409.49,0.00031992,2]
[311668685,1705300243132,-505.29629579,0.00031999,4]
[311668686,1705300243142,-200.688453,0.00032,4]
[311668687,1705300243153,-2540.08,0.00032023,2]
[311668688,1705300243164,-535.87757553,0.00032023,2]
[311668689,1705300243174,-500.0,0.00032033,2]
[311668690,1705300243184,-1378.1,0.00032033,2]
[311668691,1705300243195,-2145.42,0.00032033,2]
[311668692,1705300243206,-539.58,0.00032033,2]
[311668693,1705300243218,-966.04,0.00032044,2]
[311668694,1705300243230,-500.0,0.00032054,2]
[311668695,1705300243240,-553.65,0.00032064,2]
[311668696,1705300243250,-500.0,0.00032119,2]
[311668697,1705300243260,-3229.87082113,0.00032238,3]
[311668698,1705300243316,-3709.78414065,0.00032238,3]
[311668699,1705300243338,-3515.15641628,0.00032238,3]
[311668725,1705300246087,-563.53,0.00029293,2]
[311668726,1705300246097,-500.0,0.00029567,2]
[311668727,1705300246106,-563.53,0.00029567,2]
[311668728,1705300246115,-500.0,0.00029578,2]
[311668729,1705300246124,-280.28441754,0.00032237,4]
[311668730,1705300246134,-2089.81518661,0.00032238,3]
[311668754,1705301432182,-208.61168792,0.00023472,2]
[311668755,1705301432191,-154.9690062,0.00023473,4]
[311668756,1705301432200,-154.9690062,0.000235,2]
[311668757,1705301432209,-119.19126263,0.00028736,2]
[311668810,1705301438327,-401.80883509,0.00028736,2]
[311668812,1705301438337,-154.96900636,0.00028737,2]
[311668814,1705301438346,-2400.1726901,0.00028737,2]
[311668816,1705301438358,-1599.8273099,0.00028737,2]
[311668818,1705301438367,-3312.58582974,0.00028738,5]
[311668901,1705301444077,-652.65804518,0.00028738,5]
[311668909,1705301444138,-502.37012846,0.00028738,5]
[311668911,1705301444149,-532.38599662,0.00028738,5]
[311668913,1705301444158,-840.60017152,0.00028756,3]
[311668915,1705301444167,-190.17188325,0.00028756,3]
[311668917,1705301444176,-186.31125127,0.00029012,2]
[311668919,1705301444185,-500.0,0.0002905,2]
[311668921,1705301444194,-154.9562086,0.00029103,2]
[311668923,1705301444203,-500.0,0.00029292,2]
[311668925,1705301444212,-500.0,0.00029314,2]
[311668927,1705301444221,-505.14232294,0.00029344,2]
[311668929,1705301444230,-700.0,0.00029352,2]
[311668931,1705301444240,-636.38007509,0.00029352,2]
[311668933,1705301444249,-201.32306484,0.00029352,2]
[311668935,1705301444258,-171.27962684,0.00029467,4]
[311668937,1705301444268,-115.47939903,0.00029567,2]
[311668979,1705301446298,-384.52060097,0.00029567,2]
[311668981,1705301446311,-500.0,0.00029567,2]
[311668982,1705301446320,-500.0,0.00029567,2]
[311668985,1705301446330,-500.0,0.00029567,2]
[311668986,1705301446339,-500.0,0.00029567,2]
[311668998,1705301446457,-500.0,0.00029567,2]
[311669000,1705301446467,-500.0,0.00029567,2]
[311669002,1705301446476,-500.0,0.00029567,2]
[311669004,1705301446485,-500.0,0.00029567,2]
[311669006,1705301446494,-505.76347654,0.00029567,2]
[311669008,1705301446503,-500.0,0.00029567,2]
[311669009,1705301446512,-526.91670753,0.00029567,2]
[311669011,1705301446521,-333.30396925,0.00029578,2]
[311669013,1705301446530,-500.0,0.00029588,2]
[311669014,1705301446539,-278.26569893,0.00029597,2]
[311669015,1705301446549,-500.0,0.00029597,2]
[311669016,1705301446558,-500.0,0.00029597,2]
[311669017,1705301446567,-500.0,0.00029597,2]
[311669018,1705301446576,-500.0,0.00029597,2]
[311669020,1705301446585,-500.0,0.00029597,2]
[311669022,1705301446594,-500.0,0.00029597,2]
[311669023,1705301446603,-500.0,0.00029597,2]
[311669025,1705301446612,-500.0,0.00029597,2]
[311669026,1705301446621,-500.0,0.00029597,2]
[311669028,1705301446630,-500.0,0.00029597,2]
[311669030,1705301446639,-500.0,0.00029597,2]
[311669032,1705301446647,-500.0,0.00029597,2]
[311669034,1705301446656,-507.44515137,0.0002968,3]
[311669036,1705301446665,-175.54626043,0.0002984,2]
[311669038,1705301446674,-500.0,0.00029841,2]
[311669040,1705301446683,-500.0,0.00029862,2]
[311669042,1705301446693,-500.0,0.00029871,2]
[311669044,1705301446702,-389.0,0.0003,2]
[311669046,1705301446711,-622.67,0.00030115,2]
[311669048,1705301446720,-500.0,0.00030136,2]
[311669050,1705301446729,-500.0,0.00030136,2]
[311669052,1705301446738,-574.01015531,0.00030145,2]
[311669054,1705301446747,-500.0,0.0003041,2]
[311669056,1705301446756,-153.84014321,0.00030438,7]
[311669058,1705301446765,-150.0,0.00030569,2]
[311669060,1705301446774,-250.0,0.00030569,2]
[311669062,1705301446783,-153.84014321,0.0003067,7]
[311669064,1705301446793,-500.0,0.00030684,2]
[311669066,1705301446802,-154.9562086,0.00030793,7]
[311669068,1705301446811,-481.68069719,0.00030896,2]
[311669070,1705301446820,-200.0,0.00030896,2]
[311669072,1705301446829,-562.16562428,0.00030947,14]
[311669074,1705301446838,-500.0,0.00030958,2]
[311669076,1705301446847,-500.0,0.00030966,2]
[311669078,1705301446856,-500.0,0.00030966,2]
[311669080,1705301446865,-500.0,0.00030966,2]
[311669082,1705301446875,-976.16,0.00030966,2]
[311669085,1705301446884,-1519.67,0.00030966,2]
[311669087,1705301446893,-677.57,0.00030966,2]
[311669089,1705301446904,-500.0,0.00030966,2]
[311669091,1705301446913,-500.0,0.00030974,2]
[311669093,1705301446922,-500.0,0.00030974,2]
[311669094,1705301446931,-500.0,0.00030974,2]
[311669096,1705301446941,-230.54640073,0.00030975,2]
[311669098,1705301446950,-649.34,0.00030979,2]
[311669100,1705301446960,-2633.17,0.00030979,2]
[311669102,1705301446969,-500.0,0.00030979,2]
[311669104,1705301446978,-500.0,0.00030979,2]
[311669107,1705301446987,-1057.12,0.00030979,2]
[311669108,1705301446996,-15279.8,0.0003098,3]
[311669110,1705301447006,-586.63091856,0.00030984,4]
[311669113,1705301447016,-1905.06,0.00030989,2]
[311669114,1705301447025,-500.0,0.00030989,2]
[311669116,1705301447034,-9615.31,0.0003099,3]
[311669119,1705301447044,-18335.76,0.0003099,3]
[311669120,1705301447053,-500.0,0.00030999,2]
[311669122,1705301447062,-465.11184829,0.00030999,2]
[311669125,1705301447071,-500.0,0.00030999,2]
[311669126,1705301447081,-335.63472498,0.00030999,2]
[311669129,1705301447090,-500.0,0.00030999,2]
[311669130,1705301447100,-500.0,0.00030999,2]
[311669133,1705301447109,-349.43807217,0.00030999,2]
[311669135,1705301447118,-500.3216455,0.00030999,2]
[311669137,1705301447127,-565.18204006,0.00030999,2]
[311669139,1705301447136,-83668.68008572,0.00031,4]
[311669141,1705301447145,-4999.99,0.00031032,2]
[311669143,1705301447155,-4999.99,0.00031052,2]
[311669145,1705301447164,-4999.99,0.00031053,2]
[311669147,1705301447175,-3281.13,0.00031054,2]
[311669149,1705301447184,-4999.99,0.00031061,2]
[311669151,1705301447196,-589.44,0.00031064,2]
[311669153,1705301447205,-4999.99,0.00031066,2]
[311669155,1705301447214,-4999.99,0.00031071,2]
[311669157,1705301447229,-4999.99,0.00031073,2]
[311669159,1705301447237,-500.0,0.00031232,2]
[311669161,1705301447247,-500.0,0.0003124,2]
[311669163,1705301447259,-500.0,0.0003124,2]
[311669165,1705301447268,-500.0,0.0003124,2]
[311669166,1705301447277,-976.16,0.0003124,2]
[311669168,1705301447287,-1519.67,0.0003124,2]
[311669170,1705301447298,-677.57,0.0003124,2]
[311669172,1705301447309,-500.0,0.00031248,2]
[311669175,1705301447323,-500.0,0.00031248,2]
[311669176,1705301447332,-649.34,0.00031253,2]
[311669178,1705301447341,-2633.17,0.00031253,2]
[311669180,1705301447350,-1057.12,0.00031253,2]
[311669182,1705301447360,-1905.06,0.00031263,2]
[311669184,1705301447369,-500.0,0.00031263,2]
[311669186,1705301447378,-274.57,0.000315,4]
[311669189,1705301447388,-500.0,0.00031506,2]
[311669191,1705301447397,-500.0,0.00031514,2]
[311669193,1705301447406,-500.0,0.00031514,2]
[311669194,1705301447416,-500.0,0.00031514,2]
[311669196,1705301447425,-976.16,0.00031514,2]
[311669199,1705301447435,-1519.67,0.00031514,2]
[311669200,1705301447444,-677.57,0.00031514,2]
[311669202,1705301447453,-500.0,0.00031522,2]
[311669204,1705301447462,-500.0,0.00031522,2]
[311669206,1705301447471,-649.34,0.00031527,2]
[311669208,1705301447480,-2633.17,0.00031527,2]
[311669210,1705301447489,-1057.12,0.00031527,2]
[311669212,1705301447498,-1905.06,0.00031537,2]
[311669214,1705301447507,-500.0,0.00031537,2]
[311669216,1705301447517,-200.0,0.00031611,15]
[311669218,1705301447526,-154.9562086,0.00031763,7]
[311669220,1705301447535,-500.0,0.0003178,2]
[311669222,1705301447544,-539.68628287,0.00031788,2]
[311669224,1705301447553,-500.0,0.00031788,2]
[311669226,1705301447562,-500.0,0.00031788,2]
[311669228,1705301447571,-976.16,0.00031788,2]
[311669230,1705301447580,-1519.67,0.00031788,2]
[311669232,1705301447589,-677.57,0.00031788,2]
[311669234,1705301447598,-500.0,0.00031796,2]
[311669236,1705301447607,-500.0,0.00031796,2]
[311669238,1705301447616,-649.34,0.00031801,2]
[311669240,1705301447625,-2633.17,0.00031801,2]